[Event "Montebelluna Elite 2020"]
[Site "Montebelluna"]
[Date "2020.01.04"]
[Round "6.9"]
[White "Vignesh B"]
[Black "Can, Isik"]
[Result "1/2-1/2"]
[ECO "B18"]
[WhiteElo "1912"]
[BlackElo "2374"]
[Annotator "NA"]
[PlyCount "46"]
[EventDate "2020.01.02"]
[EventType "swiss"]
[EventCountry "ITA"]
[SourceTitle "playchess.com"]
[Source "ChessBase"]
[SourceQuality "1"]
[TimeControl "5400+30"]

1. e4 {[%emt 0:00:00]} c6 {[%emt 0:00:00]} 2. d4 {[%emt 0:00:00]} d5 {[%emt 0:00:00]} 3. Nc3 {[%emt 0:00:00]} dxe4 {[%emt 0:00:00]} 4. Nxe4 {[%emt 0:00:00]} Bf5 {[%emt 0:00:00]} 5. Ng3 {[%emt 0:00:06]} Bg6 {[%emt 0:00:03]} 6. Nh3 {[%emt 0:00:09]} Nf6 {[%emt 0:00:51]} 7. Nf4 {[%emt 0:00:07]} e5 {[%emt 0:00:05]} 8. dxe5 {[%emt 0:00:08] B18: Classical Caro-Kann: 4...Bf5 sidelines} Qa5+ {[%emt 0:00:11]} 9. c3 {[%emt 0:00:03]} Qxe5+ {[%emt 0:00:06]} 10. Qe2 {[%emt 0:02:57]} Nbd7 {[%emt 0:00:16]} 11. Nxg6 {[%emt 0:01:39]} hxg6 {[%emt 0:00:49]} 12. Bf4 {[%emt 0:00:03]} Qxe2+ {[%emt 0:00:51]} 13. Bxe2 {[%emt 0:00:03]} O-O-O {[%emt 0:00:38] [#]} 14. Bg5 $146 {[%emt 0:02:31]} ({Predecessor:} 14. Rd1 Nd5 15. Bc1 N7f6 {½-½ (48) Duda,J (2645)-Yuffa,D (2476) Khanty-Mansiysk 2015}) 14... Bc5 {[%emt 0:09:23]} 15. O-O {[%emt 0:01:15]} Ne5 {[%emt 0:01:34]} 16. Rad1 {[%emt 0:00:20]} Bb6 {[%emt 0:13:20]} 17. Bxf6 {[%emt 0:00:55]} gxf6 {[%emt 0:00:08]} 18. Ne4 {[%emt 0:00:03]} f5 {[%emt 0:00:14]} 19. Nd6+ {[%emt 0:00:08]} Kc7 {[%emt 0:00:35]} 20. Nc4 {[%emt 0:00:07]} f6 $11 {[%emt 0:00:15]} 21. Nxb6 {[%emt 0:01:08]} axb6 {[%emt 0:00:29]} 22. f4 {[%emt 0:00:38]} Nf7 {[%emt 0:00:47]} 23. Rf3 {[%emt 0:02:29]} Nd6 {[%emt 0:07:21]} 1/2-1/2

[Event "Montebelluna Elite 2020"]
[Site "Montebelluna"]
[Date "2020.01.04"]
[Round "6.10"]
[White "Loiacono, Antonio"]
[Black "Ozen, Deniz"]
[Result "1/2-1/2"]
[ECO "B02"]
[WhiteElo "2295"]
[BlackElo "2423"]
[Annotator "NA"]
[PlyCount "40"]
[EventDate "2020.01.02"]
[EventType "swiss"]
[EventCountry "ITA"]
[SourceTitle "playchess.com"]
[Source "ChessBase"]
[SourceQuality "1"]
[TimeControl "5400+30"]

1. e4 {[%emt 0:00:00]} Nf6 {[%emt 1:30:30]} 2. Nc3 {[%emt 1:31:00]} d5 {[%emt 0:00:30]} 3. e5 {[%emt 0:00:30]} d4 {[%emt 0:00:30]} 4. exf6 {[%emt 0:00:30]} dxc3 {[%emt 0:00:30]} 5. fxg7 {[%emt 0:00:30]} cxd2+ {[%emt 0:00:30]} 6. Qxd2 {[%emt 0:00:30]} Qxd2+ {[%emt 0:00:30]} 7. Bxd2 {[%emt 0:00:30]} Bxg7 {[%emt 0:00:30]} 8. O-O-O {[%emt 0:00:30]} Nc6 {[%emt 0:00:30]} 9. Bb5 {[%emt 0:00:30]} Bd7 {[%emt 0:00:30]} 10. Nf3 {[%emt 0:00:30]} a6 {[%emt 0:00:00]} 11. Bxc6 {[%emt 0:00:00]} Bxc6 {[%emt 0:01:00]} 12. Bf4 {[%emt 0:01:00]} Rc8 $11 {[%emt 0:00:30]} 13. Rhe1 {[%emt 0:00:30]} Rg8 {[%emt 0:00:30]} 14. Re3 {[%emt 0:00:30]} Bf6 {[%emt 0:00:30]} 15. g3 {[%emt 0:00:30]} Rd8 {[%emt 0:00:30]} 16. Rde1 {[%emt 0:00:30]} Bxf3 {[%emt 0:00:30]} 17. Rxf3 {[%emt 0:00:30]} Bg5 {[%emt 0:00:30]} 18. Re5 f6 {[%emt 0:00:30]} 19. Rc5 {[%emt 0:01:00]} Rd7 {[%emt 0:00:30]} 20. c3 {[%emt 0:00:00]} c6 {[%emt 0:00:00]} 1/2-1/2

[Event "Montebelluna Elite 2020"]
[Site "Montebelluna"]
[Date "2020.01.05"]
[Round "7.3"]
[White "Yurtseven, Melih"]
[Black "Radovanovic, Mihajlo"]
[Result "0-1"]
[ECO "E71"]
[WhiteElo "2385"]
[BlackElo "2485"]
[Annotator "RC"]
[PlyCount "56"]
[EventDate "2020.01.02"]
[EventType "swiss"]
[EventCountry "ITA"]
[SourceTitle "playchess.com"]
[Source "ChessBase"]
[SourceQuality "1"]
[TimeControl "5400+30"]

1. d4 {[%emt 0:16:40]} Nf6 {[%emt 0:00:00]} 2. c4 {[%emt 0:01:29]} g6 {[%emt 0:00:00]} 3. Nc3 {[%emt 0:00:04]} Bg7 {[%emt 0:00:00]} 4. e4 {[%emt 0:00:06]} O-O {[%emt 0:00:00]} 5. Be3 {[%emt 0:03:39]} d6 {[%emt 0:00:28]} 6. h3 {[%emt 0:00:07]} Na6 {[%emt 0:04:01]} 7. g4 {[%emt 0:00:59]} c6 {[%emt 0:02:41]} 8. Qd2 {[%emt 0:04:53]} Nc7 {[%emt 0:03:50]} 9. f3 {[%emt 0:07:30]} Rb8 {[%emt 0:03:35]} 10. Bd3 {[%emt 0:11:18]} b5 {[%emt 0:01:23]} 11. cxb5 {[%emt 0:00:06]} cxb5 {[%emt 0:00:25]} 12. Bh6 {[%emt 0:09:04]} e5 {[%emt 0:04:08]} 13. Bxg7 {[%emt 0:05:33]} Kxg7 {[%emt 0:00:01]} 14. d5 {[%emt 0:00:22]} b4 {[%emt 0:00:49]} 15. Nce2 {[%emt 0:00:03]} Na6 {[%emt 0:02:38]} 16. Ng3 {[%emt 0:00:44]} Nc5 {[%emt 0:01:42]} 17. Be2 {[%emt 0:01:14]} Qa5 {[%emt 0:08:00]} 18. Bc4 {[%emt 0:13:33]} Ba6 {[%emt 0:12:29]} 19. Nf5+ {[%emt 0:00:19]} Kh8 {[%emt 0:02:20]} 20. Qh6 {[%emt 0:00:09]} b3+ {[%emt 0:00:22]} 21. Kd1 {[%emt 0:11:10]} Rg8 {[%emt 0:00:15]} 22. Nxd6 {[%emt 0:06:27]} Qc7 {[%emt 0:00:11]} 23. Bxa6 {[%emt 0:00:43]} Qxd6 {[%emt 0:03:13]} 24. Bc4 {[%emt 0:01:05]} g5 {[%emt 0:00:07]} 25. h4 {[%emt 0:01:33]} Rg6 {[%emt 0:00:06]} 26. hxg5 {[%emt 0:00:02]} Rxh6 {[%emt 0:00:07]} 27. Rxh6 {[%emt 0:00:04]} Ncxe4 {[%emt 0:01:38]} 28. axb3 {[%emt 0:02:03]} Nxg5 {[%emt 0:01:44]} 0-1

[Event "Montebelluna Elite 2020"]
[Site "Montebelluna"]
[Date "2020.01.05"]
[Round "7.5"]
[White "Ozenir, Ekin Baris"]
[Black "Rahul Srivatshav P"]
[Result "1/2-1/2"]
[ECO "E44"]
[WhiteElo "2285"]
[BlackElo "2444"]
[Annotator "NA"]
[PlyCount "110"]
[EventDate "2020.01.02"]
[EventType "swiss"]
[EventCountry "ITA"]
[SourceTitle "playchess.com"]
[Source "ChessBase"]
[SourceQuality "1"]
[TimeControl "5400+30"]

1. d4 {[%emt 0:00:00]} Nf6 {[%emt 0:07:51]} 2. c4 {[%emt 0:00:00]} e6 {[%emt 0:00:32]} 3. Nc3 {[%emt 0:00:23]} Bb4 {[%emt 0:00:07]} 4. e3 {[%emt 0:00:33]} b6 {[%emt 0:00:07]} 5. Nge2 {[%emt 0:01:43]} Ne4 {[%emt 0:00:28]} 6. Bd2 {[%emt 0:08:09]} Nxd2 {[%emt 0:02:23]} 7. Qxd2 {[%emt 0:00:02]} Bb7 {[%emt 0:00:44]} 8. a3 {[%emt 0:00:14]} Be7 {[%emt 0:03:21]} 9. Ng3 {[%emt 0:08:22]} h5 {[%emt 0:06:04]} 10. d5 {[%emt 0:01:43]} h4 {[%emt 0:02:07]} 11. Nge2 $1 {[%emt 0:00:07]} e5 {[%emt 0:06:12]} 12. g4 {[%emt 0:02:53]} hxg3 {[%emt 0:04:39]} 13. Nxg3 {[%emt 0:00:07]} g6 $11 {[%emt 0:01:03]} 14. f4 {[%emt 0:05:16]} d6 {[%emt 0:10:34]} 15. O-O-O {[%emt 0:02:12]} f5 {[%emt 0:08:22]} 16. c5 {[%emt 0:01:42]} bxc5 {[%emt 0:00:45]} 17. fxe5 {[%emt 0:01:13]} dxe5 {[%emt 0:00:18]} 18. Bb5+ {[%emt 0:00:46]} Nd7 {[%emt 0:04:08]} 19. Qg2 {[%emt 0:00:48]} Bg5 {[%emt 0:14:04]} 20. Kb1 {[%emt 0:02:43]} Qe7 {[%emt 0:00:38]} 21. Nge4 {[%emt 0:16:37]} fxe4 {[%emt 0:02:51]} 22. Nxe4 {[%emt 0:00:04]} O-O-O {[%emt 0:03:49]} 23. Nxg5 {[%emt 0:03:04]} Nf6 {[%emt 0:01:09]} 24. e4 {[%emt 0:06:22]} Rd6 {[%emt 0:00:09]} 25. Rc1 {[%emt 0:02:05]} Rb6 {[%emt 0:00:58]} 26. Be2 {[%emt 0:00:43]} Kb8 {[%emt 0:00:54]} 27. Rc2 {[%emt 0:02:26]} Rc8 {[%emt 0:04:49]} 28. Rd1 {[%emt 0:04:02]} Qd6 {[%emt 0:05:13]} 29. Qg3 {[%emt 0:00:46]} Ka8 {[%emt 0:00:42]} 30. Qc3 {[%emt 0:01:30]} Rb8 {[%emt 0:00:33]} 31. Qxc5 {[%emt 0:03:07]} Qxc5 {[%emt 0:00:08]} 32. Rxc5 {[%emt 0:00:02]} Bxd5 {[%emt 0:00:16]} 33. b4 {[%emt 0:00:38]} Bb7 {[%emt 0:00:51]} 34. Rxe5 {[%emt 0:01:16]} c5 {[%emt 0:00:34]} 35. Rxc5 {[%emt 0:01:39]} Nxe4 {[%emt 0:00:06]} 36. Nxe4 {[%emt 0:01:08]} Bxe4+ {[%emt 0:00:14]} 37. Bd3 {[%emt 0:02:24]} Bxd3+ {[%emt 0:01:39]} 38. Rxd3 {[%emt 0:00:07]} Rb5 {[%emt 0:01:37]} 39. Rc4 {[%emt 0:06:45]} a5 {[%emt 0:01:10]} 40. Kc2 {[%emt 0:00:21]} axb4 {[%emt 0:01:10]} 41. axb4 {[%emt 0:00:02]} Rh8 {[%emt 0:00:25]} 42. h3 {[%emt 0:00:09]} Rbh5 {[%emt 0:00:16]} 43. Rcc3 {[%emt 0:00:15]} Rh4 {[%emt 0:02:24]} 44. Kb3 {[%emt 0:00:09]} Rb8 {[%emt 0:01:26]} 45. Rc4 {[%emt 0:00:05]} Rbh8 {[%emt 0:00:16]} 46. Rxh4 {[%emt 0:00:34]} Rxh4 {[%emt 0:00:05]} 47. Ka4 {[%emt 0:00:03]} g5 {[%emt 0:01:04]} 48. Rg3 {[%emt 0:00:05]} Kb7 {[%emt 0:00:05]} 49. Ka5 {[%emt 0:00:14]} Rh5 {[%emt 0:00:21]} 50. b5 {[%emt 0:19:22]} Rh7 {[%emt 0:01:18]} 51. Re3 {[%emt 0:00:00]} Rg7 {[%emt 0:00:22]} 52. Rg3 {[%emt 0:00:00]} Rh7 {[%emt 0:00:22]} 53. Rxg5 {[%emt 0:00:00]} Rxh3 {[%emt 0:00:08]} 54. Rg7+ {[%emt 0:00:00]} Kb8 {[%emt 0:00:12]} 55. Ka6 {[%emt 0:00:00]} Rh8 {[%emt 0:00:06]} 1/2-1/2

[Event "Montebelluna Elite 2020"]
[Site "Montebelluna"]
[Date "2020.01.05"]
[Round "7.6"]
[White "Sankalp Gupta"]
[Black "Zanan, Evegny"]
[Result "0-1"]
[ECO "C93"]
[WhiteElo "2400"]
[BlackElo "2503"]
[Annotator "ChessBase"]
[PlyCount "112"]
[EventDate "2020.01.02"]
[EventType "swiss"]
[EventCountry "ITA"]
[SourceTitle "playchess.com"]
[Source "ChessBase"]
[SourceQuality "1"]
[TimeControl "5400+30"]

1. e4 {[%emt 0:03:51]} e5 {[%emt 0:03:28]} 2. Nf3 {[%emt 0:00:03]} Nc6 {[%emt 0:00:09]} 3. Bb5 {[%emt 0:00:05]} a6 {[%emt 0:00:13]} 4. Ba4 {[%emt 0:00:01]} Nf6 {[%emt 0:00:06]} 5. O-O {[%emt 0:00:04]} Be7 {[%emt 0:00:04]} 6. Re1 {[%emt 0:00:07]} b5 {[%emt 0:00:07]} 7. Bb3 {[%emt 0:00:01]} d6 {[%emt 0:00:06]} 8. c3 {[%emt 0:00:11]} O-O {[%emt 0:00:07]} 9. h3 {[%emt 0:00:02]} Bb7 {[%emt 0:00:44]} 10. d4 {[%emt 0:00:04]} h6 {[%emt 0:01:19]} 11. Nbd2 {[%emt 0:00:13]} Re8 {[%emt 0:00:12]} 12. Nf1 {[%emt 0:12:23]} Bf8 {[%emt 0:05:43]} 13. Ng3 {[%emt 0:03:27]} Na5 {[%emt 0:00:23]} 14. Bc2 {[%emt 0:00:03]} Nc4 {[%emt 0:00:07]} 15. a4 {[%emt 0:02:09]} Nb6 {[%emt 0:14:02]} 16. b3 {[%emt 0:03:20]} bxa4 {[%emt 0:00:17]} 17. bxa4 {[%emt 0:00:07]} a5 {[%emt 0:00:04]} 18. Bd3 {[%emt 0:01:06]} Qc8 {[%emt 0:07:49]} 19. Nh4 {[%emt 0:03:51]} g6 {[%emt 0:07:22]} 20. f4 {[%emt 0:11:11]} Bg7 {[%emt 0:57:38]} 21. Nf3 {[%emt 0:04:46]} Nbd7 {[%emt 0:09:43]} 22. Ra2 {[%emt 0:00:16]} Ba6 {[%emt 0:01:40]} 23. Bb1 {[%emt 0:01:53]} Rb8 {[%emt 0:03:34]} 24. Be3 {[%emt 0:00:23]} Qb7 {[%emt 0:02:31]} 25. fxe5 {[%emt 0:04:59]} dxe5 {[%emt 0:00:39]} 26. dxe5 {[%emt 0:03:21]} Nxe5 {[%emt 0:00:28]} 27. Nxe5 {[%emt 0:00:02]} Rxe5 {[%emt 0:00:08]} 28. Rf2 {[%emt 0:00:04]} Qc6 {[%emt 0:12:10]} 29. Bd4 {[%emt 0:01:44]} Nd7 {[%emt 0:06:51]} 30. Ba2 {[%emt 0:03:34]} Bc4 {[%emt 0:00:14]} 31. Bxc4 {[%emt 0:09:35]} Qxc4 {[%emt 0:06:07]} 32. Bxe5 {[%emt 0:02:36]} Nxe5 {[%emt 0:00:06]} 33. Ref1 {[%emt 0:00:03]} Qxc3 {[%emt 0:01:11]} 34. Kh2 {[%emt 0:00:43]} c6 {[%emt 0:01:46]} 35. Rc2 {[%emt 0:03:43]} Qb4 {[%emt 0:00:43]} 36. Rd2 {[%emt 0:00:12]} Qe7 {[%emt 0:00:29]} 37. Kh1 {[%emt 0:02:42]} Qh4 {[%emt 0:01:07]} 38. Ne2 {[%emt 0:02:36]} Qxe4 {[%emt 0:01:03]} 39. Ng1 {[%emt 0:00:29]} Rf8 {[%emt 0:02:19]} 40. Nf3 {[%emt 0:01:48]} Nxf3 {[%emt 0:00:25]} 41. Rxf3 {[%emt 0:00:51]} c5 {[%emt 0:01:32]} 42. Rdf2 {[%emt 0:00:37]} Bd4 {[%emt 0:00:45]} 43. Rf1 {[%emt 0:22:14]} f5 {[%emt 0:00:56]} 44. Re1 {[%emt 0:01:06]} Qc6 {[%emt 0:00:28]} 45. Qd3 {[%emt 0:00:05]} Re8 {[%emt 0:00:33]} 46. Qc4+ {[%emt 0:00:14]} Kg7 {[%emt 0:00:06]} 47. Rb1 {[%emt 0:00:23]} Re7 {[%emt 0:01:33]} 48. Rfb3 {[%emt 0:00:28]} Qe6 {[%emt 0:01:51]} 49. Qd3 {[%emt 0:01:06]} h5 {[%emt 0:00:14]} 50. Rb6 {[%emt 0:00:49]} Qe4 {[%emt 0:00:34]} 51. Qa6 {[%emt 0:02:23]} f4 {[%emt 0:00:35]} 52. Rf1 {[%emt 0:00:01]} c4 {[%emt 0:00:33]} 53. Rd6 {[%emt 0:02:56]} Qd3 {[%emt 0:00:37]} 54. Rg1 {[%emt 0:05:21]} f3 {[%emt 0:00:09]} 55. Rxd4 {[%emt 0:00:02]} fxg2+ {[%emt 0:00:34]} 56. Rxg2 {[%emt 0:00:14]} Qxh3+ {[%emt 0:00:04]} 0-1

[Event "Montebelluna Elite 2020"]
[Site "Montebelluna"]
[Date "2020.01.05"]
[Round "7.8"]
[White "Barseghyan, Harutyun"]
[Black "Vignesh B"]
[Result "1/2-1/2"]
[ECO "E11"]
[WhiteElo "2459"]
[BlackElo "1912"]
[Annotator "ChessBase"]
[PlyCount "71"]
[EventDate "2020.01.02"]
[EventType "swiss"]
[EventCountry "ITA"]
[SourceTitle "playchess.com"]
[Source "ChessBase"]
[SourceQuality "1"]
[TimeControl "5400+30"]

1. d4 {[%emt 0:13:03]} Nf6 {[%emt 0:00:00]} 2. c4 {[%emt 0:00:18]} e6 {[%emt 0:00:00]} 3. Nf3 {[%emt 0:00:03]} Bb4+ {[%emt 0:00:00]} 4. Nbd2 {[%emt 0:00:06]} O-O {[%emt 0:00:09]} 5. a3 {[%emt 0:00:51]} Be7 {[%emt 0:02:01]} 6. e4 {[%emt 0:00:07]} d5 {[%emt 0:00:10]} 7. e5 {[%emt 0:00:23]} Nfd7 {[%emt 0:00:06]} 8. Bd3 {[%emt 0:05:03]} c5 {[%emt 0:01:23]} 9. cxd5 {[%emt 0:02:02]} exd5 {[%emt 0:00:33]} 10. O-O {[%emt 0:00:07]} cxd4 {[%emt 0:03:02]} 11. Nb3 {[%emt 0:01:25]} Nc6 {[%emt 0:01:03]} 12. Re1 {[%emt 0:00:02]} f6 {[%emt 0:08:19]} 13. exf6 {[%emt 0:09:55]} Nxf6 {[%emt 0:01:48]} 14. Qc2 {[%emt 0:14:18]} Ne4 {[%emt 0:10:37]} 15. Rxe4 {[%emt 0:09:56]} dxe4 {[%emt 0:00:46]} 16. Bxe4 {[%emt 0:00:01]} Bg4 {[%emt 0:08:40]} 17. Bxh7+ {[%emt 0:01:47]} Kh8 {[%emt 0:00:02]} 18. Be4 {[%emt 0:00:19]} d3 {[%emt 0:00:57]} 19. Qc4 {[%emt 0:03:41]} Bxf3 {[%emt 0:00:28]} 20. gxf3 {[%emt 0:00:04]} Bg5 {[%emt 0:03:23]} 21. Kh1 {[%emt 0:10:14]} d2 {[%emt 0:02:43]} 22. Bxd2 {[%emt 0:00:18]} Bxd2 {[%emt 0:00:06]} 23. Rd1 {[%emt 0:00:04]} Qh4 {[%emt 0:03:01]} 24. Nxd2 {[%emt 0:05:07]} Rad8 {[%emt 0:00:11]} 25. Qc5 {[%emt 0:04:03]} Rf6 {[%emt 0:05:19]} 26. Kg2 {[%emt 0:03:03]} Rfd6 {[%emt 0:03:25]} 27. Bc2 {[%emt 0:02:11]} Rd5 {[%emt 0:00:20]} 28. Qe3 {[%emt 0:00:24]} Qh6 {[%emt 0:07:45]} 29. f4 {[%emt 0:00:02]} Rd4 {[%emt 0:02:46]} 30. Nf3 {[%emt 0:02:13]} Rxd1 {[%emt 0:00:06]} 31. Bxd1 {[%emt 0:00:15]} Qh5 {[%emt 0:04:03]} 32. Bc2 {[%emt 0:04:33]} Qg4+ {[%emt 0:03:49]} 33. Kh1 {[%emt 0:10:32]} Qh3 34. Qe4 {[%emt 0:00:30]} Nd4 {[%emt 0:29:59]} 35. Ng1 {[%emt 0:00:30]} Qh6 {[%emt 0:00:30]} 36. Bd3 {[%emt 0:00:00]} 1/2-1/2

[Event "Montebelluna Elite 2020"]
[Site "Montebelluna"]
[Date "2020.01.05"]
[Round "8.4"]
[White "Sonis, Francesco"]
[Black "Nikolovski, Nikola"]
[Result "1/2-1/2"]
[ECO "A10"]
[WhiteElo "2458"]
[BlackElo "2442"]
[Annotator "RC"]
[PlyCount "190"]
[EventDate "2020.01.02"]
[EventType "swiss"]
[EventCountry "ITA"]
[SourceTitle "playchess.com"]
[Source "ChessBase"]
[SourceQuality "1"]
[TimeControl "5400+30"]

1. Nf3 {[%emt 0:00:00]} e6 {[%emt 0:12:12]} 2. c4 {[%emt 0:00:01]} f5 {[%emt 0:00:30]} 3. g3 {[%emt 0:00:30]} Nf6 {[%emt 0:00:30]} 4. Bg2 {[%emt 0:00:30]} Be7 {[%emt 0:00:30]} 5. O-O {[%emt 0:00:30]} O-O {[%emt 0:00:30]} 6. Nc3 {[%emt 0:00:30]} d6 {[%emt 0:00:30]} 7. b4 {[%emt 0:00:30]} Qe8 {[%emt 0:00:30]} 8. d3 {[%emt 0:00:30]} e5 {[%emt 0:00:30]} 9. e3 {[%emt 0:00:30]} Nc6 {[%emt 0:00:30]} 10. Rb1 {[%emt 0:00:30]} Nd8 {[%emt 0:00:30]} 11. Nd2 {[%emt 0:00:30]} Nf7 {[%emt 0:00:30]} 12. f4 {[%emt 0:00:30]} Bd8 {[%emt 0:00:30]} 13. Re1 {[%emt 0:00:30]} c6 {[%emt 0:00:30]} 14. Nf3 {[%emt 0:00:30]} Nh6 {[%emt 0:00:30]} 15. Ba3 {[%emt 0:50:44]} e4 {[%emt 1:06:01]} 16. Ng5 {[%emt 0:07:43]} Nhg4 {[%emt 0:02:50]} 17. dxe4 {[%emt 0:14:39]} h6 {[%emt 0:00:12]} 18. Nf3 {[%emt 0:00:27]} Nxe4 {[%emt 0:03:51]} 19. Nxe4 {[%emt 0:00:12]} fxe4 {[%emt 0:00:10]} 20. Nd2 {[%emt 0:00:13]} Nf6 {[%emt 0:01:08]} 21. Bb2 {[%emt 0:01:59]} Bf5 {[%emt 0:01:15]} 22. Qc2 {[%emt 0:00:11]} d5 {[%emt 0:00:40]} 23. Bd4 {[%emt 0:01:40]} h5 {[%emt 0:00:55]} 24. cxd5 {[%emt 0:02:05]} cxd5 {[%emt 0:00:06]} 25. Qb3 {[%emt 0:00:33]} Qf7 {[%emt 0:02:36]} 26. h3 {[%emt 0:00:47]} Kh8 {[%emt 0:00:07]} 27. Nf1 {[%emt 0:00:43]} Rc8 {[%emt 0:01:07]} 28. Rbd1 {[%emt 0:01:54]} Rc4 {[%emt 0:00:29]} 29. Bc5 {[%emt 0:02:02]} Rg8 {[%emt 0:01:10]} 30. Nd2 {[%emt 0:00:25]} b6 {[%emt 0:01:33]} 31. Bd4 {[%emt 0:00:01]} Rc8 {[%emt 0:00:36]} 32. Bxf6 {[%emt 0:03:49]} gxf6 {[%emt 0:00:04]} 33. Nxe4 {[%emt 0:00:46]} Qg6 {[%emt 0:00:05]} 34. Qxd5 {[%emt 0:01:57]} Rc2 {[%emt 0:00:14]} 35. Nd2 {[%emt 0:00:57]} Qxg3 {[%emt 0:01:36]} 36. Re2 {[%emt 0:00:00]} Qg6 {[%emt 0:00:52]} 37. Qf3 {[%emt 0:00:41]} Bd3 {[%emt 0:01:19]} 38. Rf2 {[%emt 0:00:18]} f5 {[%emt 0:00:23]} 39. Nf1 {[%emt 0:02:52]} Be4 {[%emt 0:00:11]} 40. Qg3 {[%emt 0:01:34]} Rxf2 {[%emt 0:01:07]} 41. Kxf2 {[%emt 0:00:07]} Qxg3+ {[%emt 0:00:30]} 42. Nxg3 {[%emt 0:00:01]} Bh4 {[%emt 0:00:38]} 43. Bxe4 {[%emt 0:00:03]} Bxg3+ {[%emt 0:00:09]} 44. Kf3 {[%emt 0:00:00]} fxe4+ {[%emt 0:00:08]} 45. Kxe4 {[%emt 0:00:02]} Re8+ {[%emt 0:01:00]} 46. Kf3 {[%emt 0:00:01]} Bh4 {[%emt 0:00:06]} 47. Rd5 {[%emt 0:00:02]} Kg7 {[%emt 0:00:40]} 48. Rxh5 {[%emt 0:00:02]} Be7 {[%emt 0:00:07]} 49. Re5 {[%emt 0:01:10]} Kf7 {[%emt 0:00:15]} 50. b5 {[%emt 0:00:35]} Rd8 {[%emt 0:00:58]} 51. Re4 {[%emt 0:01:02]} Bc5 {[%emt 0:00:40]} 52. a4 {[%emt 0:01:49]} Rd1 {[%emt 0:00:29]} 53. Re5 {[%emt 0:00:28]} Ra1 {[%emt 0:00:12]} 54. Re4 {[%emt 0:00:01]} Kf6 {[%emt 0:00:12]} 55. Kg3 {[%emt 0:00:30]} Ra3 {[%emt 0:00:32]} 56. Kf3 {[%emt 0:00:05]} Ra2 {[%emt 0:00:17]} 57. Kg3 {[%emt 0:00:04]} Ra1 {[%emt 0:00:02]} 58. Kf2 {[%emt 0:00:19]} Kg6 {[%emt 0:00:23]} 59. Kg3 {[%emt 0:00:13]} Ra3 {[%emt 0:01:35]} 60. Kf3 {[%emt 0:00:09]} Kf6 {[%emt 0:00:10]} 61. Kf2 {[%emt 0:00:05]} Bd6 {[%emt 0:00:13]} 62. Kg3 {[%emt 0:00:56]} Kf5 {[%emt 0:00:40]} 63. Kf3 {[%emt 0:00:06]} Rd3 {[%emt 0:00:42]} 64. Re8 {[%emt 0:00:15]} Rc3 {[%emt 0:00:41]} 65. Re4 {[%emt 0:01:13]} Ra3 {[%emt 0:00:22]} 66. Rd4 {[%emt 0:03:13]} Bc5 {[%emt 0:00:12]} 67. Re4 {[%emt 0:00:01]} Rc3 {[%emt 0:01:20]} 68. Re5+ {[%emt 0:00:03]} Kf6 {[%emt 0:00:03]} 69. Re4 {[%emt 0:00:06]} Rb3 {[%emt 0:01:01]} 70. Kf2 {[%emt 0:00:09]} Bd6 {[%emt 0:00:19]} 71. Kg3 {[%emt 0:00:10]} Ra3 {[%emt 0:00:59]} 72. Kf3 {[%emt 0:00:06]} Ra2 {[%emt 0:00:07]} 73. Rd4 {[%emt 0:00:47]} Bc5 {[%emt 0:00:45]} 74. Re4 {[%emt 0:00:02]} Ra3 {[%emt 0:00:15]} 75. Kf2 {[%emt 0:00:04]} Kg6 {[%emt 0:00:14]} 76. Kf3 {[%emt 0:00:10]} Ra2 {[%emt 0:00:15]} 77. Re6+ {[%emt 0:00:05]} Kf7 {[%emt 0:00:19]} 78. Re4 {[%emt 0:00:03]} Ra3 {[%emt 0:01:02]} 79. Kf2 {[%emt 0:00:03]} Kg7 {[%emt 0:00:16]} 80. Kf3 {[%emt 0:00:10]} Kg6 {[%emt 0:00:04]} 81. Kf2 {[%emt 0:00:06]} Kh5 {[%emt 0:01:16]} 82. Kf3 {[%emt 0:00:08]} Kh4 {[%emt 0:00:29]} 83. Re8 {[%emt 0:00:03]} Kh5 {[%emt 0:00:05]} 84. Re4 {[%emt 0:00:09]} Rc3 {[%emt 0:00:57]} 85. Re5+ {[%emt 0:00:07]} Kg6 {[%emt 0:00:05]} 86. Re6+ {[%emt 0:00:18]} Kf5 {[%emt 0:00:26]} 87. Re5+ {[%emt 0:00:03]} Kf6 {[%emt 0:00:05]} 88. Re4 {[%emt 0:00:02]} Rc1 {[%emt 0:01:03]} 89. Kg3 {[%emt 0:00:08]} Rc2 {[%emt 0:00:08]} 90. Kf3 {[%emt 0:00:05]} Rc3 {[%emt 0:00:02]} 91. Kf2 {[%emt 0:00:04]} Bd6 {[%emt 0:00:18]} 92. Kg3 {[%emt 0:00:12]} Kf5 {[%emt 0:00:33]} 93. Kf3 {[%emt 0:00:02]} Rc2 {[%emt 0:01:08]} 94. Re8 {[%emt 0:00:45]} Rc3 {[%emt 0:02:14]} 95. Re4 {[%emt 0:00:17]} Ra3 {[%emt 0:00:40]} 1/2-1/2